[Event "Titled Tuesday Blitz February 15 Early 2022"]
[White "Viani Antonio Dcunha"]
[Black "Jones, Gawain C B"]
[WhiteFideId "5027330"]
[BlackFideId "409561"]
[WhiteElo "2366"]
[BlackElo "2657"]
[Result "1-0"]
[Round "06"]
[TimeControl "180+1"]
[Date "2022.02.15"]
[WhiteClock "0:00:12"]
[BlackClock "0:00:03"]

1. e4 {[%clk 0:03:00]}  e5 {[%clk 0:02:59]} 2. Nf3 {[%clk 0:03:00]}  Nc6 {[%clk 0:03:00]} 3. Bc4 {[%clk 0:02:57]}  Nf6 {[%clk 0:02:59]} 4. d3 {[%clk 0:02:57]}  Bc5 {[%clk 0:02:59]} 5. O-O {[%clk 0:02:53]}  d6 {[%clk 0:02:59]} 6. Nc3 {[%clk 0:02:51]}  a6 {[%clk 0:02:54]} 7. a4 {[%clk 0:02:49]}  h6 {[%clk 0:02:50]} 8. Be3 {[%clk 0:02:47]}  O-O {[%clk 0:02:48]} 9. d4 {[%clk 0:02:36]}  exd4 {[%clk 0:02:47]} 10. Nxd4 {[%clk 0:02:37]}  Ng4 {[%clk 0:02:33]} 11. Nxc6 {[%clk 0:01:59]}  Qh4 {[%clk 0:02:29]} 12. Ne7+ {[%clk 0:01:52]}  Kh8 {[%clk 0:02:06]} 13. h3 {[%clk 0:01:27]}  Nxe3 {[%clk 0:02:06]} 14. fxe3 {[%clk 0:01:24]}  Bxe3+ {[%clk 0:01:48]} 15. Kh2 {[%clk 0:01:23]}  Qxe7 {[%clk 0:01:40]} 16. Qh5 {[%clk 0:01:09]}  Be6 {[%clk 0:01:19]} 17. Nd5 {[%clk 0:01:08]}  Qg5 {[%clk 0:01:19]} 18. Qe2 {[%clk 0:00:54]}  Qe5+ {[%clk 0:01:06]} 19. Kh1 {[%clk 0:00:51]}  Ba7 {[%clk 0:00:54]} 20. Nxc7 {[%clk 0:00:41]}  Bxc4 {[%clk 0:00:22]} 21. Qxc4 {[%clk 0:00:42]}  Rac8 {[%clk 0:00:22]} 22. Rxf7 {[%clk 0:00:42]}  d5 {[%clk 0:00:15]} 23. Qxd5 {[%clk 0:00:35]}  Qxb2 {[%clk 0:00:11]} 24. Raf1 {[%clk 0:00:31]}  Rxf7 {[%clk 0:00:11]} 25. Qxf7 {[%clk 0:00:31]}  Bd4 {[%clk 0:00:05]} 26. Ne6 {[%clk 0:00:19]}  Bf6 {[%clk 0:00:04]} 27. c4 {[%clk 0:00:15]}  Qe5 {[%clk 0:00:04]} 28. c5 {[%clk 0:00:12]}  Rc6 {[%clk 0:00:01]} 29. Nf4 {[%clk 0:00:10]}  Rc8 {[%clk 0:00:01]} 30. Ng6+ {[%clk 0:00:10]}  Kh7 {[%clk 0:00:02]} 31. Nxe5 {[%clk 0:00:11]}  Bxe5 {[%clk 0:00:02]} 32. Qf5+ {[%clk 0:00:11]}  Kh8 {[%clk 0:00:03]} 33. Qxc8+ {[%clk 0:00:12]} 1-0


[Site "https://www.chess.com"]

[Event "Titled Tuesday Blitz February 15 Early 2022"]
[White "Vifleemskaia, Svetlana"]
[Black "Gabdrakhmanov, Azat"]
[WhiteFideId "4129490"]
[BlackFideId "34189197"]
[WhiteElo "1901"]
[BlackElo "2279"]
[Result "0-1"]
[Round "06"]
[TimeControl "180+1"]
[Date "2022.02.15"]
[WhiteClock "0:00:22"]
[BlackClock "0:00:14"]

1. d4 {[%clk 0:03:00]}  Nf6 {[%clk 0:03:00]} 2. c4 {[%clk 0:02:59]}  g6 {[%clk 0:03:00]} 3. Nc3 {[%clk 0:02:58]}  Bg7 {[%clk 0:03:01]} 4. e4 {[%clk 0:02:59]}  O-O {[%clk 0:03:02]} 5. Nge2 {[%clk 0:02:58]}  c5 {[%clk 0:02:57]} 6. d5 {[%clk 0:02:56]}  d6 {[%clk 0:02:57]} 7. Ng3 {[%clk 0:02:57]}  e6 {[%clk 0:02:58]} 8. Be2 {[%clk 0:02:56]}  exd5 {[%clk 0:02:58]} 9. cxd5 {[%clk 0:02:57]}  h5 {[%clk 0:02:58]} 10. Bg5 {[%clk 0:02:56]}  Nbd7 {[%clk 0:02:55]} 11. Qd2 {[%clk 0:02:55]}  Qe8 {[%clk 0:02:47]} 12. O-O {[%clk 0:02:50]}  Nh7 {[%clk 0:02:46]} 13. Bh6 {[%clk 0:02:49]}  h4 {[%clk 0:02:45]} 14. Bxg7 {[%clk 0:02:45]}  Kxg7 {[%clk 0:02:45]} 15. Nh1 {[%clk 0:02:45]}  Ndf6 {[%clk 0:02:42]} 16. f3 {[%clk 0:02:43]}  a6 {[%clk 0:02:35]} 17. a4 {[%clk 0:02:41]}  Bd7 {[%clk 0:02:26]} 18. Nf2 {[%clk 0:02:40]}  h3 {[%clk 0:02:22]} 19. g4 {[%clk 0:02:36]}  Rb8 {[%clk 0:02:11]} 20. a5 {[%clk 0:02:22]}  Rh8 {[%clk 0:02:02]} 21. Nxh3 {[%clk 0:02:21]}  Qe5 {[%clk 0:01:55]} 22. Qf4 {[%clk 0:01:48]}  Qd4+ {[%clk 0:00:50]} 23. Nf2 {[%clk 0:01:47]}  g5 {[%clk 0:00:37]} 24. Qxd6 {[%clk 0:01:45]}  Nf8 {[%clk 0:00:28]} 25. Rfd1 {[%clk 0:01:05]}  Qb4 {[%clk 0:00:27]} 26. Nd3 {[%clk 0:01:00]}  Qd4+ {[%clk 0:00:21]} 27. Nf2 {[%clk 0:01:00]}  Qb4 {[%clk 0:00:21]} 28. Nd3 {[%clk 0:00:56]}  Qd4+ {[%clk 0:00:21]} 29. Kg2 {[%clk 0:00:55]}  Ng6 {[%clk 0:00:19]} 30. Qg3 {[%clk 0:00:31]}  Qe3 {[%clk 0:00:15]} 31. Qf2 {[%clk 0:00:25]}  Nf4+ {[%clk 0:00:13]} 32. Nxf4 {[%clk 0:00:25]}  Rxh2+ {[%clk 0:00:14]} 33. Kxh2 {[%clk 0:00:22]}  Qxf2+ {[%clk 0:00:14]} 0-1


[Site "https://www.chess.com"]

[Event "Titled Tuesday Blitz February 15 Early 2022"]
[White "Visakh N R"]
[Black "Nesterov, Arseniy"]
[WhiteFideId "25012223"]
[BlackFideId "24198455"]
[WhiteElo "2454"]
[BlackElo "2489"]
[Result "1/2-1/2"]
[Round "06"]
[TimeControl "180+1"]
[Date "2022.02.15"]
[WhiteClock "0:01:01"]
[BlackClock "0:00:07"]

1. e4 {[%clk 0:03:00]}  e5 {[%clk 0:02:59]} 2. Nf3 {[%clk 0:03:01]}  Nc6 {[%clk 0:03:00]} 3. Bb5 {[%clk 0:03:01]}  a6 {[%clk 0:03:00]} 4. Ba4 {[%clk 0:03:00]}  b5 {[%clk 0:03:00]} 5. Bb3 {[%clk 0:03:00]}  Na5 {[%clk 0:03:01]} 6. O-O {[%clk 0:02:59]}  d6 {[%clk 0:03:00]} 7. d4 {[%clk 0:02:48]}  exd4 {[%clk 0:03:01]} 8. Nxd4 {[%clk 0:02:48]}  Bb7 {[%clk 0:03:01]} 9. Bd2 {[%clk 0:02:37]}  Nxb3 {[%clk 0:02:51]} 10. axb3 {[%clk 0:02:37]}  Nf6 {[%clk 0:02:27]} 11. Re1 {[%clk 0:02:38]}  Be7 {[%clk 0:02:25]} 12. Nf5 {[%clk 0:02:38]}  O-O {[%clk 0:02:25]} 13. Bg5 {[%clk 0:02:38]}  Re8 {[%clk 0:02:13]} 14. Qf3 {[%clk 0:02:34]}  Bxe4 {[%clk 0:01:04]} 15. Rxe4 {[%clk 0:02:28]}  Nxe4 {[%clk 0:01:04]} 16. Bxe7 {[%clk 0:02:28]}  Rxe7 {[%clk 0:01:02]} 17. Nc3 {[%clk 0:02:22]}  d5 {[%clk 0:00:24]} 18. Qg4 {[%clk 0:01:44]}  Qf8 {[%clk 0:00:07]} 19. Nxe7+ {[%clk 0:01:09]}  Qxe7 {[%clk 0:00:08]} 20. Nxd5 {[%clk 0:01:10]}  Qe5 {[%clk 0:00:09]} 21. Re1 {[%clk 0:01:01]}  Qxd5 {[%clk 0:00:07]} 22. Qxe4 {[%clk 0:01:00]}  Qxe4 {[%clk 0:00:07]} 23. Rxe4 {[%clk 0:01:01]}  Kf8 {[%clk 0:00:07]} 1/2-1/2


[Site "https://www.chess.com"]

[Event "Titled Tuesday Blitz February 15 Early 2022"]
[White "Vivas Zamora, Fabian Ernesto"]
[Black "Karabalis, Harilos"]
[WhiteFideId "3902480"]
[BlackFideId "4621808"]
[WhiteElo "1966"]
[BlackElo "2168"]
[Result "0-1"]
[Round "06"]
[TimeControl "180+1"]
[Date "2022.02.15"]
[WhiteClock "0:00:01"]
[BlackClock "0:01:43"]

1. c4 {[%clk 0:03:00]}  Nf6 {[%clk 0:02:57]} 2. Nc3 {[%clk 0:02:59]}  c5 {[%clk 0:02:55]} 3. Nf3 {[%clk 0:02:58]}  d5 {[%clk 0:02:54]} 4. cxd5 {[%clk 0:02:58]}  Nxd5 {[%clk 0:02:53]} 5. e4 {[%clk 0:02:58]}  Nc7 {[%clk 0:02:52]} 6. d4 {[%clk 0:02:55]}  cxd4 {[%clk 0:02:52]} 7. Qxd4 {[%clk 0:02:54]}  Qxd4 {[%clk 0:02:51]} 8. Nxd4 {[%clk 0:02:55]}  a6 {[%clk 0:02:50]} 9. Bf4 {[%clk 0:02:38]}  Ne6 {[%clk 0:02:50]} 10. Nd5 {[%clk 0:01:04]}  Nxd4 {[%clk 0:02:48]} 11. Nc7+ {[%clk 0:01:00]}  Kd8 {[%clk 0:02:49]} 12. O-O-O {[%clk 0:00:58]}  Nc6 {[%clk 0:02:40]} 13. Nxa8 {[%clk 0:00:55]}  f6 {[%clk 0:02:36]} 14. Bc7+ {[%clk 0:00:39]}  Ke8 {[%clk 0:02:34]} 15. Bb6 {[%clk 0:00:36]}  e5 {[%clk 0:02:32]} 16. Nc7+ {[%clk 0:00:36]}  Kd7 {[%clk 0:02:29]} 17. Bc4 {[%clk 0:00:28]}  Bd6 {[%clk 0:02:27]} 18. Be6+ {[%clk 0:00:23]}  Nxe6 {[%clk 0:02:24]} 19. Nd5 {[%clk 0:00:13]}  Ned4 {[%clk 0:02:21]} 20. Rd2 {[%clk 0:00:07]}  Ke8 {[%clk 0:02:17]} 21. Rhd1 {[%clk 0:00:06]}  Be6 {[%clk 0:02:17]} 22. Ne3 {[%clk 0:00:06]}  Ke7 {[%clk 0:02:15]} 23. b3 {[%clk 0:00:06]}  Rc8 {[%clk 0:02:15]} 24. Kb2 {[%clk 0:00:06]}  Bb4 {[%clk 0:02:14]} 25. Rd3 {[%clk 0:00:05]}  Ke8 {[%clk 0:02:09]} 26. Nd5 {[%clk 0:00:05]}  Bd6 {[%clk 0:02:05]} 27. f4 {[%clk 0:00:04]}  Bf7 {[%clk 0:01:51]} 28. g3 {[%clk 0:00:03]}  Bg6 {[%clk 0:01:50]} 29. f5 {[%clk 0:00:03]}  Bf7 {[%clk 0:01:50]} 30. a3 {[%clk 0:00:02]}  Bxd5 {[%clk 0:01:47]} 31. exd5 {[%clk 0:00:02]}  Ne7 {[%clk 0:01:47]} 32. Bxd4 {[%clk 0:00:01]}  exd4 {[%clk 0:01:47]} 33. Re1 {[%clk 0:00:01]}  Be5 {[%clk 0:01:47]} 34. Re4 {[%clk 0:00:01]}  Rd8 {[%clk 0:01:45]} 35. Rde3 {[%clk 0:00:01]}  dxe3+ {[%clk 0:01:43]} 0-1


[Site "https://www.chess.com"]

[Event "Titled Tuesday Blitz February 15 Early 2022"]
[White "Voege, Tobias"]
[Black "Srihari L R"]
[WhiteFideId "1270513"]
[BlackFideId "46617116"]
[WhiteElo "2335"]
[BlackElo "2121"]
[Result "1/2-1/2"]
[Round "06"]
[TimeControl "180+1"]
[Date "2022.02.15"]
[WhiteClock "0:00:43"]
[BlackClock "0:00:58"]

1. d4 {[%clk 0:03:00]}  f5 {[%clk 0:02:58]} 2. c4 {[%clk 0:03:01]}  Nf6 {[%clk 0:02:58]} 3. g3 {[%clk 0:03:02]}  g6 {[%clk 0:02:58]} 4. Bg2 {[%clk 0:03:02]}  Bg7 {[%clk 0:02:58]} 5. Nf3 {[%clk 0:03:03]}  O-O {[%clk 0:02:59]} 6. O-O {[%clk 0:03:04]}  d6 {[%clk 0:02:59]} 7. d5 {[%clk 0:03:03]}  a5 {[%clk 0:02:52]} 8. Nc3 {[%clk 0:03:04]}  Na6 {[%clk 0:02:51]} 9. Nd4 {[%clk 0:03:04]}  Nc5 {[%clk 0:02:51]} 10. b3 {[%clk 0:03:03]}  Rb8 {[%clk 0:02:44]} 11. Bb2 {[%clk 0:03:01]}  Kh8 {[%clk 0:02:42]} 12. Qd2 {[%clk 0:02:54]}  Qe8 {[%clk 0:02:36]} 13. Rae1 {[%clk 0:02:49]}  e5 {[%clk 0:02:26]} 14. dxe6 {[%clk 0:02:46]}  Nxe6 {[%clk 0:02:25]} 15. Nxe6 {[%clk 0:02:45]}  Bxe6 {[%clk 0:02:26]} 16. Nd5 {[%clk 0:02:44]}  Bxd5 {[%clk 0:02:24]} 17. cxd5 {[%clk 0:02:41]}  a4 {[%clk 0:02:24]} 18. f3 {[%clk 0:02:37]}  axb3 {[%clk 0:02:23]} 19. axb3 {[%clk 0:02:38]}  Nd7 {[%clk 0:02:23]} 20. e4 {[%clk 0:02:33]}  fxe4 {[%clk 0:02:15]} 21. Rxe4 {[%clk 0:02:29]}  Qf7 {[%clk 0:02:13]} 22. Rfe1 {[%clk 0:02:21]}  Rbe8 {[%clk 0:02:07]} 23. Bxg7+ {[%clk 0:02:17]}  Kxg7 {[%clk 0:02:07]} 24. Re6 {[%clk 0:01:51]}  Nc5 {[%clk 0:02:02]} 25. Qc3+ {[%clk 0:01:34]}  Kg8 {[%clk 0:02:00]} 26. Rxe8 {[%clk 0:01:24]}  Rxe8 {[%clk 0:02:00]} 27. b4 {[%clk 0:01:23]}  Na4 {[%clk 0:01:42]} 28. Rxe8+ {[%clk 0:01:12]}  Qxe8 {[%clk 0:01:41]} 29. Qxc7 {[%clk 0:01:04]}  Qe3+ {[%clk 0:01:40]} 30. Kf1 {[%clk 0:01:05]}  Qd3+ {[%clk 0:01:40]} 31. Kg1 {[%clk 0:01:02]}  Qd4+ {[%clk 0:01:39]} 32. Kf1 {[%clk 0:01:01]}  Nc3 {[%clk 0:01:06]} 33. Qd8+ {[%clk 0:00:58]}  Kg7 {[%clk 0:01:02]} 34. Qe7+ {[%clk 0:00:56]}  Kg8 {[%clk 0:01:02]} 35. Qe6+ {[%clk 0:00:54]}  Kg7 {[%clk 0:01:01]} 36. Qe7+ {[%clk 0:00:53]}  Kg8 {[%clk 0:00:59]} 37. Qe8+ {[%clk 0:00:44]}  Kg7 {[%clk 0:00:58]} 38. Qe7+ {[%clk 0:00:43]} 1/2-1/2


[Site "https://www.chess.com"]

[Event "Titled Tuesday Blitz February 15 Early 2022"]
[White "Vokhidov, Shamsiddin"]
[Black "Atakhan, Abtin"]
[WhiteFideId "14204223"]
[BlackFideId "22502203"]
[WhiteElo "2611"]
[BlackElo "2119"]
[Result "1-0"]
[Round "06"]
[TimeControl "180+1"]
[Date "2022.02.15"]
[WhiteClock "0:00:25"]
[BlackClock "0:00:02"]

1. e4 {[%clk 0:03:00]}  c6 {[%clk 0:02:59]} 2. d4 {[%clk 0:03:01]}  d5 {[%clk 0:03:00]} 3. e5 {[%clk 0:03:01]}  Bf5 {[%clk 0:03:00]} 4. h4 {[%clk 0:03:02]}  h5 {[%clk 0:03:01]} 5. Bd3 {[%clk 0:03:02]}  Bxd3 {[%clk 0:03:00]} 6. Qxd3 {[%clk 0:03:03]}  e6 {[%clk 0:03:01]} 7. Bg5 {[%clk 0:03:03]}  Qa5+ {[%clk 0:03:00]} 8. Nd2 {[%clk 0:03:03]}  Qa6 {[%clk 0:02:59]} 9. c4 {[%clk 0:03:03]}  Nd7 {[%clk 0:02:56]} 10. Ngf3 {[%clk 0:03:02]}  Bb4 {[%clk 0:02:56]} 11. O-O {[%clk 0:03:02]}  Nh6 {[%clk 0:02:53]} 12. Rfd1 {[%clk 0:02:53]}  Nf5 {[%clk 0:02:52]} 13. b3 {[%clk 0:02:53]}  O-O {[%clk 0:02:43]} 14. Nf1 {[%clk 0:02:52]}  Rfc8 {[%clk 0:02:21]} 15. Ng3 {[%clk 0:02:10]}  Nxg3 {[%clk 0:02:05]} 16. fxg3 {[%clk 0:02:11]}  Ba3 {[%clk 0:01:31]} 17. Be3 {[%clk 0:02:03]}  Nf8 {[%clk 0:01:25]} 18. Rf1 {[%clk 0:01:54]}  Be7 {[%clk 0:01:23]} 19. Bg5 {[%clk 0:01:54]}  Rc7 {[%clk 0:01:17]} 20. Rf2 {[%clk 0:01:47]}  c5 {[%clk 0:01:11]} 21. Bxe7 {[%clk 0:01:43]}  Rxe7 {[%clk 0:01:11]} 22. Ng5 {[%clk 0:01:34]}  dxc4 {[%clk 0:01:05]} 23. bxc4 {[%clk 0:01:35]}  Rd8 {[%clk 0:01:03]} 24. Qf3 {[%clk 0:01:32]}  Rdd7 {[%clk 0:00:43]} 25. d5 {[%clk 0:01:21]}  Qxc4 {[%clk 0:00:19]} 26. d6 {[%clk 0:01:20]}  Re8 {[%clk 0:00:20]} 27. Nxf7 {[%clk 0:01:05]}  Nh7 {[%clk 0:00:20]} 28. Qxh5 {[%clk 0:01:01]}  Rf8 {[%clk 0:00:20]} 29. Ng5 {[%clk 0:00:47]}  Nxg5 {[%clk 0:00:14]} 30. Rxf8+ {[%clk 0:00:44]}  Kxf8 {[%clk 0:00:15]} 31. Rf1+ {[%clk 0:00:41]}  Qxf1+ {[%clk 0:00:09]} 32. Kxf1 {[%clk 0:00:42]}  Nf7 {[%clk 0:00:08]} 33. Ke2 {[%clk 0:00:32]}  c4 {[%clk 0:00:08]} 34. Qg4 {[%clk 0:00:26]}  Nxe5 {[%clk 0:00:06]} 35. Qxe6 {[%clk 0:00:25]}  Rd8 {[%clk 0:00:02]} 36. Qe7+ {[%clk 0:00:25]} 1-0


[Site "https://www.chess.com"]

[Event "Titled Tuesday Blitz February 15 Early 2022"]
[White "Vovk, Orest"]
[Black "Hamitevici, Vladimir"]
[WhiteFideId "14113490"]
[BlackFideId "13902393"]
[WhiteElo "2203"]
[BlackElo "2359"]
[Result "1-0"]
[Round "06"]
[TimeControl "180+1"]
[Date "2022.02.15"]
[WhiteClock "0:00:05"]
[BlackClock "0:00:07"]

1. h4 {[%clk 0:03:00]}  e5 {[%clk 0:02:55]} 2. h5 {[%clk 0:03:00]}  d5 {[%clk 0:02:54]} 3. h6 {[%clk 0:02:56]}  Nxh6 {[%clk 0:02:53]} 4. d4 {[%clk 0:02:55]}  e4 {[%clk 0:02:15]} 5. Bxh6 {[%clk 0:02:53]}  gxh6 {[%clk 0:02:16]} 6. e3 {[%clk 0:02:54]}  c6 {[%clk 0:02:11]} 7. c4 {[%clk 0:02:50]}  Qb6 {[%clk 0:02:02]} 8. Qb3 {[%clk 0:02:49]}  Be6 {[%clk 0:01:59]} 9. Nc3 {[%clk 0:02:47]}  Nd7 {[%clk 0:01:47]} 10. Nge2 {[%clk 0:02:42]}  dxc4 {[%clk 0:01:42]} 11. Qxb6 {[%clk 0:02:40]}  axb6 {[%clk 0:01:43]} 12. Nf4 {[%clk 0:02:33]}  b5 {[%clk 0:01:31]} 13. Nxe6 {[%clk 0:02:31]}  fxe6 {[%clk 0:01:32]} 14. Nxe4 {[%clk 0:02:30]}  Nb6 {[%clk 0:01:19]} 15. Rh5 {[%clk 0:02:17]}  Nd5 {[%clk 0:01:11]} 16. a3 {[%clk 0:01:57]}  Kf7 {[%clk 0:00:43]} 17. g3 {[%clk 0:01:46]}  Rg8 {[%clk 0:00:38]} 18. Rc1 {[%clk 0:01:37]}  Rg4 {[%clk 0:00:32]} 19. f3 {[%clk 0:01:21]}  Rg6 {[%clk 0:00:29]} 20. Kf2 {[%clk 0:01:18]}  Ra4 {[%clk 0:00:20]} 21. Bh3 {[%clk 0:01:11]}  b4 {[%clk 0:00:14]} 22. Rxc4 {[%clk 0:00:59]}  b5 {[%clk 0:00:07]} 23. Rxc6 {[%clk 0:00:55]}  bxa3 {[%clk 0:00:08]} 24. bxa3 {[%clk 0:00:47]}  Rxa3 {[%clk 0:00:09]} 25. Rxe6 {[%clk 0:00:29]}  Ra2+ {[%clk 0:00:08]} 26. Ke1 {[%clk 0:00:27]}  Nxe3 {[%clk 0:00:08]} 27. Nd6+ {[%clk 0:00:13]}  Kg8 {[%clk 0:00:06]} 28. Rxe3 {[%clk 0:00:13]}  Ra1+ {[%clk 0:00:04]} 29. Kf2 {[%clk 0:00:12]}  Rxd6 {[%clk 0:00:05]} 30. Rxb5 {[%clk 0:00:11]}  Rxd4 {[%clk 0:00:05]} 31. Be6+ {[%clk 0:00:11]}  Kg7 {[%clk 0:00:05]} 32. f4 {[%clk 0:00:09]}  Rd2+ {[%clk 0:00:04]} 33. Kf3 {[%clk 0:00:09]}  Rf1+ {[%clk 0:00:05]} 34. Kg4 {[%clk 0:00:09]}  Rfd1 {[%clk 0:00:05]} 35. Rb7+ {[%clk 0:00:09]}  Kh8 {[%clk 0:00:05]} 36. Bf5 {[%clk 0:00:06]}  Rd8 {[%clk 0:00:06]} 37. Rxh7+ {[%clk 0:00:05]}  Kg8 {[%clk 0:00:07]} 38. Rb7 {[%clk 0:00:05]}  Rh1 {[%clk 0:00:06]} 39. Be6+ {[%clk 0:00:05]}  Kh8 {[%clk 0:00:06]} 40. Kf5 {[%clk 0:00:06]}  Rg1 {[%clk 0:00:06]} 41. g4 {[%clk 0:00:06]}  Rf1 {[%clk 0:00:06]} 42. g5 {[%clk 0:00:06]}  Rd4 {[%clk 0:00:06]} 43. Re4 {[%clk 0:00:04]}  Rxe4 {[%clk 0:00:06]} 44. Kxe4 {[%clk 0:00:05]}  hxg5 {[%clk 0:00:07]} 45. fxg5 {[%clk 0:00:05]}  Rg1 {[%clk 0:00:06]} 46. Kf5 {[%clk 0:00:05]}  Rf1+ {[%clk 0:00:07]} 47. Kg6 {[%clk 0:00:05]}  Re1 {[%clk 0:00:07]} 48. Rh7# {[%clk 0:00:05]} 1-0


[Site "https://www.chess.com"]

[Event "Titled Tuesday Blitz February 15 Early 2022"]
[White "Wartiovaara, Oliver"]
[Black "Gulatz, Maurice"]
[WhiteFideId "513024"]
[BlackFideId "24642746"]
[WhiteElo "1971"]
[BlackElo "2150"]
[Result "0-1"]
[Round "06"]
[TimeControl "180+1"]
[Date "2022.02.15"]
[WhiteClock "0:00:01"]
[BlackClock "0:00:16"]

1. e4 {[%clk 0:03:00]}  c6 {[%clk 0:02:58]} 2. d4 {[%clk 0:02:59]}  d5 {[%clk 0:02:59]} 3. e5 {[%clk 0:02:59]}  Bf5 {[%clk 0:02:58]} 4. Nd2 {[%clk 0:02:58]}  e6 {[%clk 0:02:56]} 5. Nb3 {[%clk 0:02:57]}  Nd7 {[%clk 0:02:55]} 6. Nf3 {[%clk 0:02:50]}  Ne7 {[%clk 0:02:54]} 7. Be2 {[%clk 0:02:50]}  h6 {[%clk 0:02:54]} 8. O-O {[%clk 0:02:50]}  g5 {[%clk 0:02:54]} 9. a4 {[%clk 0:02:44]}  Bg6 {[%clk 0:02:51]} 10. a5 {[%clk 0:02:41]}  Nf5 {[%clk 0:02:50]} 11. Ne1 {[%clk 0:02:28]}  Bg7 {[%clk 0:02:47]} 12. f4 {[%clk 0:02:27]}  Qe7 {[%clk 0:02:37]} 13. Nd3 {[%clk 0:02:00]}  O-O {[%clk 0:02:19]} 14. Bd2 {[%clk 0:01:48]}  Rfc8 {[%clk 0:02:07]} 15. Qc1 {[%clk 0:01:41]}  gxf4 {[%clk 0:01:55]} 16. Bxf4 {[%clk 0:01:42]}  Kh7 {[%clk 0:01:32]} 17. Qd2 {[%clk 0:01:14]}  b6 {[%clk 0:01:30]} 18. c3 {[%clk 0:00:57]}  c5 {[%clk 0:01:30]} 19. Nf2 {[%clk 0:00:54]}  cxd4 {[%clk 0:01:26]} 20. cxd4 {[%clk 0:00:51]}  f6 {[%clk 0:01:15]} 21. exf6 {[%clk 0:00:48]}  Nxf6 {[%clk 0:01:10]} 22. Bd3 {[%clk 0:00:48]}  h5 {[%clk 0:01:02]} 23. Nh3 {[%clk 0:00:35]}  Ne4 {[%clk 0:00:52]} 24. Bxe4 {[%clk 0:00:33]}  dxe4 {[%clk 0:00:52]} 25. Ng5+ {[%clk 0:00:34]}  Kg8 {[%clk 0:00:53]} 26. Nxe4 {[%clk 0:00:34]}  Qd7 {[%clk 0:00:40]} 27. Be5 {[%clk 0:00:21]}  Bxe5 {[%clk 0:00:34]} 28. dxe5 {[%clk 0:00:22]}  Qxd2 {[%clk 0:00:34]} 29. Nbxd2 {[%clk 0:00:20]}  Kg7 {[%clk 0:00:31]} 30. axb6 {[%clk 0:00:18]}  axb6 {[%clk 0:00:32]} 31. Rxa8 {[%clk 0:00:17]}  Rxa8 {[%clk 0:00:33]} 32. Nc4 {[%clk 0:00:16]}  b5 {[%clk 0:00:27]} 33. Ncd6 {[%clk 0:00:15]}  Nd4 {[%clk 0:00:27]} 34. Ng5 {[%clk 0:00:14]}  Ra2 {[%clk 0:00:23]} 35. Rd1 {[%clk 0:00:14]}  Nc6 {[%clk 0:00:21]} 36. Nxe6+ {[%clk 0:00:13]}  Kh6 {[%clk 0:00:21]} 37. Nxb5 {[%clk 0:00:12]}  Nxe5 {[%clk 0:00:20]} 38. Rd2 {[%clk 0:00:07]}  Ng4 {[%clk 0:00:18]} 39. Nc3 {[%clk 0:00:05]}  Ra1+ {[%clk 0:00:19]} 40. Rd1 {[%clk 0:00:05]}  Ra8 {[%clk 0:00:18]} 41. h3 {[%clk 0:00:05]}  Ne3 {[%clk 0:00:18]} 42. Re1 {[%clk 0:00:04]}  Nc4 {[%clk 0:00:18]} 43. Re2 {[%clk 0:00:03]}  Nd6 {[%clk 0:00:18]} 44. Nf4 {[%clk 0:00:03]}  Bf5 {[%clk 0:00:17]} 45. Nfd5 {[%clk 0:00:03]}  Nc4 {[%clk 0:00:17]} 46. Rf2 {[%clk 0:00:03]}  Kg5 {[%clk 0:00:17]} 47. g4 {[%clk 0:00:04]}  hxg4 {[%clk 0:00:17]} 48. hxg4 {[%clk 0:00:05]}  Kxg4 {[%clk 0:00:18]} 49. Rg2+ {[%clk 0:00:05]}  Kh3 {[%clk 0:00:17]} 50. Rh2+ {[%clk 0:00:05]}  Kg3 {[%clk 0:00:18]} 51. Rg2+ {[%clk 0:00:06]}  Kf3 {[%clk 0:00:17]} 52. Rf2+ {[%clk 0:00:06]}  Kg4 {[%clk 0:00:18]} 53. Rg2+ {[%clk 0:00:07]}  Kh5 {[%clk 0:00:18]} 54. Rh2+ {[%clk 0:00:07]}  Kg5 {[%clk 0:00:18]} 55. Rg2+ {[%clk 0:00:07]}  Kh6 {[%clk 0:00:18]} 56. Rh2+ {[%clk 0:00:08]}  Kg6 {[%clk 0:00:19]} 57. Rg2+ {[%clk 0:00:08]}  Kf7 {[%clk 0:00:19]} 58. Rf2 {[%clk 0:00:08]}  Ke6 {[%clk 0:00:20]} 59. Nf4+ {[%clk 0:00:08]}  Ke5 {[%clk 0:00:20]} 60. Nfe2 {[%clk 0:00:07]}  Bd3 {[%clk 0:00:19]} 61. Ng3 {[%clk 0:00:07]}  Ne3 {[%clk 0:00:18]} 62. Nf1 {[%clk 0:00:05]}  Rg8+ {[%clk 0:00:17]} 63. Ng3 {[%clk 0:00:02]}  Rxg3+ {[%clk 0:00:16]} 64. Kh2 {[%clk 0:00:03]}  Rg8 {[%clk 0:00:16]} 65. Rd2 {[%clk 0:00:01]}  Nf1+ {[%clk 0:00:16]} 0-1


[Site "https://www.chess.com"]